Cogmind - Beta 14 @@@ ROGUE MODE // 2024.12.30 @ 15:16:59 Player: Nueadkie Result: Destroyed by X-62 Marksman with Gauss Rifle Performance ------------- Evolutions (3) 1500 Regions Visited (6) 1200 Robots Destroyed (36) 180 Value Destroyed (1285) 1285 Prototype IDs (9) 180 Alien Tech Used (0) 0 Bonus (471) 471 TOTAL SCORE: 4816 Bonus ------- Entered DSFs 500 Friendly Fire -29 Cogmind --------- Core Integrity 0/700 Matter 81/300 Energy 55/100 System Corruption 0% Temperature Cool (0) Movement Flying (365) Ox4 Location -7/DSF Parts ------- > --- POWER (1) -------- (None) > --- PROPULSION (4) --- Armored Wheel Armored Wheel Cesium-ion Thruster > --- UTILITY (5) ------ Large Storage Unit Core Analyzer > --- WEAPON (3) ------- Chainsword > --- INVENTORY (15) --- Light Nuclear Core Heavy Laser Advanced Assault Cannon Heavy Missile Launcher Peak State ------------ > --- POWER ------------ Light Nuclear Core > --- PROPULSION ------- Carbon-fiber Leg Carbon-fiber Leg Carbon-fiber Leg Flexi-carbon Leg > --- UTILITY ---------- Improved Heat Sink Large Storage Unit Experimental Sensor Array Reaction Control System Hacking Suite > --- WEAPON ----------- Advanced Assault Cannon Advanced Assault Cannon Heavy Missile Launcher > --- INVENTORY -------- Light Deuterium Engine Light Nuclear Core Carbon-fiber Leg Armored Wheel Armored Wheel Armored Wheel Armored Wheel Cesium-ion Thruster Improved Cesium-ion Thruster Heavy Laser Advanced Assault Cannon Shock Bomb Launcher Heavy Missile Launcher Datajack [Rating: 52] Favorites ----------- Power Light Nuclear Core Engine Ion Engine Power Core Light Nuclear Core Propulsion Aluminum Leg Treads Improved Treads Leg Aluminum Leg Wheel Armored Wheel Hover Unit Hover Unit Flight Unit Flight Unit Utility Heat Sink Device Heat Sink Storage Large Storage Unit Processor Transport Network Coupler Hackware Hacking Suite Weapon Particle Gun Energy Gun Particle Gun Ballistic Gun Assault Rifle Ballistic Cannon Advanced Assault Cannon Launcher Shock Bomb Launcher Slashing Weapon Chainsword Build | -11 -10 -9 -9 -8 -7 -7 ------- Run | Yrd Mat Mat Min Mat Fac DSF Slots Evolved 6 | . . 2 . 2 2 . Power . | . . . . . . . Propulsion 2 | . . 1 . 1 . . Utility 3 | . . 1 . 1 1 . Weapon 1 | . . . . . 1 . Parts Attached 70 | 6 9 9 11 13 6 16 Power 6 | 1 2 . 1 1 . 1 Engine 3 | 1 1 . . . . 1 Core 3 | . 1 . 1 1 . . Reactor . | . . . . . . . Propulsion 29 | 2 4 4 3 6 2 8 Treads 3 | . . 3 . . . . Leg 17 | 2 1 1 3 6 2 2 Wheel 4 | . . . . . . 4 Hover 2 | . 2 . . . . . Flight 3 | . 1 . . . . 2 Utility 17 | 1 2 4 3 2 3 2 Device 7 | . 1 1 3 . 2 . Storage 2 | 1 . . . 1 . . Processor 4 | . 1 . . 1 . 2 Hackware 4 | . . 3 . . 1 . Protection . | . . . . . . . Artifact . | . . . . . . . Weapon 18 | 2 1 1 4 4 1 5 Energy Gun 8 | 1 1 1 3 2 . . Energy Cannon . | . . . . . . . Ballistic Gun 3 | 1 . . 1 1 . . Ballistic Cannon 2 | . . . . . . 2 Launcher 3 | . . . . 1 1 1 Special Weapon . | . . . . . . . Impact Weapon . | . . . . . . . Slashing Weapon 2 | . . . . . . 2 Piercing Weapon . | . . . . . . . Special Melee Weapon . | . . . . . . . Unidentified Prototypes 2 | . . . 1 . . 1 Corrupted Parts 2 | . . . . 2 . . System Corruption 8 | . . . . 8 . . Parts Lost 38 | . 2 4 6 9 . 17 Power 5 | . 1 . 1 1 . 2 Propulsion 13 | . 1 1 . 4 . 7 Utility 9 | . . 2 2 1 . 4 Weapon 11 | . . 1 3 3 . 4 Highest Loss Streak 17 | . 1 3 6 6 . 17 To Critical Strikes . | . . . . . . . Average Slot Usage (%) 92 | . 95 95 92 91 100 81 Engine 2 | . 10 . . . . . Core 7 | . 3 11 10 9 7 4 Treads 6 | . . 20 18 . . . Leg 19 | . 20 4 12 28 30 21 Hover 2 | . 5 7 . . . . Device 17 | . 10 14 17 24 23 16 Storage 5 | . 6 . . 8 7 7 Processor 3 | . 7 1 . 2 . 7 Hackware 4 | . . 14 11 . 6 2 Energy Gun 14 | . 14 18 18 13 7 1 Ballistic Gun 5 | . 14 3 1 1 . . Launcher 1 | . . . . 1 15 6 Peak Build Rating 52 | 6 10 22 29 37 47 52 Average Rating 21 | 4 7 18 22 30 46 40 On Entrance 20 | . 6 10 22 29 31 47 Naked Turns . | . . . . . . . Heaviest Build 47 | 8 11 12 19 42 40 47 Greatest Support 69 | 20 20 69 69 55 65 65 Greatest Overweight (x) 1 | . 1 1 . 1 . 1 Average Overweight (x) . | . . . . . . . Largest Inventory Capacity 15 | 5 5 5 5 15 15 15 Average Capacity 8 | 5 5 5 5 14 15 15 Most Carried 15 | 2 5 5 5 15 14 15 Average Carried 6 | . 3 4 4 9 10 11 Final Capacity 15 | 5 5 5 5 15 15 15 Final Carried 15 | 1 5 5 4 15 11 4 Class Distribution -------------------- 54% | Scavenger-Mutant 22% | Mutant 14% | Hacker-Mutant 6% | Scavenger-Skirmisher Dominant Class ---------------- Scavenger-Mutant | -10/Materials Hacker-Mutant | -9/Materials Scavenger-Mutant | -9/Mines Scavenger-Mutant | -8/Materials Scavenger-Skirmisher | -7/Factory Scavenger-Gunner | -7/DSF Resources | -11 -10 -9 -9 -8 -7 -7 ----------- Run | Yrd Mat Mat Min Mat Fac DSF Matter Collected 950 | 322 214 113 116 102 . 83 Remotely . | . . . . . . . Salvage Created 1507 | 54 596 218 62 443 . 134 Parts 62 | 2 26 11 . 18 . 5 Haulers Intercepted 2 | . 2 . . . . . Recyclers Shooed . | . . . . . . . Parts Field Recycled . | . . . . . . . Retrieved Matter . | . . . . . . . Parts Self-Destructed . | . . . . . . . Prevented . | . . . . . . . Kills | -11 -10 -9 -9 -8 -7 -7 ------- Run | Yrd Mat Mat Min Mat Fac DSF Combat Hostiles Destroyed 34 | 1 11 3 7 9 . 3 Melee 2 | . . . . . . 2 Guns 30 | 1 11 3 7 8 . . Cannons 1 | . . . . . . 1 AOE 1 | . . . . 1 . . Classes Destroyed 10 | 2 2 2 1 1 . 2 Worker 2 | 1 1 . . . . . Hauler 2 | . 2 . . . . . Operator 1 | . . 1 . . . . Watcher 4 | . 2 2 . . . . Grunt 20 | 1 11 . . 7 . 1 Sentry 4 | . . 3 . 1 . . Specialist 1 | . . . . . . 1 Hunter 1 | . . . . 1 . . Heavy 1 | . . . . . . 1 Assembled 7 | . . . 7 . . . Best Kill Streak 4 | 1 4 1 4 4 . 2 Combat Bots Only 4 | 1 4 1 4 4 . 2 Max Kills in Single Turn 2 | 1 1 1 2 1 . 1 Gunslinging 1 | . . . 1 . . . Exploded 1 | . . . . 1 . . Melee 1 | . . . . . . 1 Uniques/NPCs Destroyed . | . . . . . . . Combat | -11 -10 -9 -9 -8 -7 -7 -------- Run | Yrd Mat Mat Min Mat Fac DSF Hostile Shots Fired 379 | 4 49 26 61 85 . 154 Missed 113 | 2 19 5 20 22 . 45 Damage Taken 4529 | 22 406 301 586 1072 . 2142 Core 987 | 10 66 29 54 127 . 701 Absorbed by Shields . | . . . . . . . Core Remaining (%) 80 | 96 69 . 79 76 . . Volleys Fired 138 | 4 48 18 21 39 . 8 Largest 3 | 2 2 2 2 2 . 3 Hottest 135 | 70 85 121 101 130 . 135 Shots Fired 245 | 8 93 31 38 56 . 19 Gun 222 | 8 93 31 38 52 . . Cannon 16 | . . . . . . 16 Launcher 7 | . . . . 4 . 3 Special . | . . . . . . . Kinetic 90 | 4 48 6 12 4 . 16 Thermal 143 | 4 45 25 21 48 . . Explosive 3 | . . . . . . 3 Electromagnetic 9 | . . . 5 4 . . Robot Hit Streak 8 | 4 7 8 5 8 . 7 Robot Miss Streak 4 | 1 3 2 4 2 . 4 Penetration Max . | . . . . . . . Secondary Targets 4 | . 3 . 1 . . . Max Gunslinging Chain 1 | . 1 . 1 . . . Shots Hit Robots 167 | 5 58 23 22 38 . 21 Core Hits 84 | 3 26 9 12 20 . 14 Critical Kills 1 | . . . 1 . . . Critical Parts Destroyed 1 | 1 . . . . . . Critical Strikes 7 | 2 2 . 1 . . 2 Burn 3 | 1 2 . . . . . Destroy 2 | 1 . . 1 . . . Sever 2 | . . . . . . 2 Melee Attacks 9 | . . . . . . 9 Impact . | . . . . . . . Slashing 9 | . . . . . . 9 Piercing . | . . . . . . . Sneak Attacks . | . . . . . . . Combat Hostiles . | . . . . . . . Follow-up Attacks . | . . . . . . . Damage Inflicted 3562 | 63 783 331 348 787 . 1250 Guns 2088 | 63 783 331 348 563 . . Cannons 301 | . . . . . . 301 Explosions 832 | . . . . 224 . 608 Melee 341 | . . . . . . 341 Ramming . | . . . . . . . Kinetic 830 | 25 332 37 96 39 . 301 Thermal 1508 | 38 451 294 201 524 . . Explosive 608 | . . . . . . 608 Electromagnetic 275 | . . . 51 224 . . Impact . | . . . . . . . Slashing 341 | . . . . . . 341 Piercing . | . . . . . . . Highest Corruption 8 | . . . . 8 . . Average Corruption 7 | . . . . 7 . . Corruption Purged . | . . . . . . . Corruption Blocked . | . . . . . . . Effects 1 | . . . . 1 . . Heat Flow Errors 1 | . . . . 1 . . Overload Shots . | . . . . . . . Overflow Damage 6 | . . . . 6 . . Projectiles . | . . . . . . . Explosions 6 | . . . . 6 . . Melee . | . . . . . . . Knockbacks 1 | . . . . . . 1 Impact . | . . . . . . . Kinetic 1 | . . . . . . 1 Secondary . | . . . . . . . Self-Inflicted Damage 97 | . . . . 97 . . Shots 3 | . . . . 3 . . Rammed . | . . . . . . . Targets Rammed . | . . . . . . . Kicked . | . . . . . . . Crushed . | . . . . . . . Highest Temperature 225 | 39 99 199 130 225 . . Average Temperature 51 | 19 26 66 46 69 . . Received Heat Transfer 1491 | 12 228 117 . 531 . 603 Siege Activations . | . . . . . . . Robots Corrupted . | . . . . . . . Combat Hostiles . | . . . . . . . Parts Fried . | . . . . . . . Impact Corruptions . | . . . . . . . Robots Melted . | . . . . . . . Combat Hostiles . | . . . . . . . Parts Melted 10 | 1 5 3 . 1 . . Heat Transferred 4033 | 185 1332 740 518 1258 . . Parts Sabotaged . | . . . . . . . Parts Stolen . | . . . . . . . Parts Stripped . | . . . . . . . Power Chain Reactions 1 | . . . . 1 . . Alert | -11 -10 -9 -9 -8 -7 -7 ------- Run | Yrd Mat Mat Min Mat Fac DSF Peak Influence 214 | 25 214 178 14 204 109 118 Initial 83 | . 16 70 14 . 83 76 Average 79 | 5 115 116 4 68 104 74 Maximum Alert Level 1 | . 1 . . 1 . . Low Security (%) 99 | 100 99 100 100 98 100 100 Level 1 . | . . . . 1 . . Level 2 . | . . . . . . . Level 3 . | . . . . . . . Level 4 . | . . . . . . . Level 5 . | . . . . . . . High Security . | . . . . . . . Max Security . | . . . . . . . Squads Dispatched 7 | . 2 . . 3 . 2 Investigation 3 | . 1 . . 2 . . Extermination . | . . . . . . . Reinforcement 4 | . 1 . . 1 . 2 Assault . | . . . . . . . Garrison . | . . . . . . . Intercept . | . . . . . . . Searches Triggered . | . . . . . . . Construction Impeded . | . . . . . . . Haulers Reinforced . | . . . . . . . Active Scanning Responses . | . . . . . . . Cargo Convoy Interrupts . | . . . . . . . Stealth | -11 -10 -9 -9 -8 -7 -7 --------- Run | Yrd Mat Mat Min Mat Fac DSF Distress Signals 5 | . 2 3 . . . . Communications Jammed . | . . . . . . . Distress Signals . | . . . . . . . Times Spotted 69 | 1 21 10 10 16 . 11 Peak Tracking Total 7 | 1 5 5 5 4 . 7 Tactical Retreats 7 | . 1 1 1 4 . . Traps | -11 -10 -9 -9 -8 -7 -7 ------- Run | Yrd Mat Mat Min Mat Fac DSF Traps Triggered 3 | . . . . 1 . 2 Indirectly . | . . . . . . . Trap Hack Attempts . | . . . . . . . Triggered . | . . . . . . . Disarmed . | . . . . . . . Reprogrammed . | . . . . . . . Reused . | . . . . . . . Traps Extracted . | . . . . . . . Installed . | . . . . . . . Triggered . | . . . . . . . Machines | -11 -10 -9 -9 -8 -7 -7 ---------- Run | Yrd Mat Mat Min Mat Fac DSF Machines Disabled 1 | . . . . 1 . . Max in Single Turn 1 | . . . . 1 . . Machines Repaired . | . . . . . . . Machines Dismantled . | . . . . . . . Machines Sabotaged . | . . . . . . . Overloaded Fab Kills . | . . . . . . . Hacking | -11 -10 -9 -9 -8 -7 -7 --------- Run | Yrd Mat Mat Min Mat Fac DSF Machines Accessed 17 | . 7 3 . 5 2 . Terminals 15 | . 7 2 . 4 2 . Fabricators . | . . . . . . . Repair Stations . | . . . . . . . Recycling Units 1 | . . . . 1 . . Scanalyzers 1 | . . 1 . . . . Garrison Access . | . . . . . . . Total Hacks 48 | . 17 9 . 18 4 . Successful 25 | . 8 3 . 11 3 . Failed 23 | . 9 6 . 7 1 . Catastrophic 3 | . 2 . . 1 . . Database Lockouts . | . . . . . . . Manual 1 | . 1 . . . . . Terminals 41 | . 17 7 . 13 4 . Fabricators . | . . . . . . . Repair Stations . | . . . . . . . Recycling Units 5 | . . . . 5 . . Scanalyzers 2 | . . 2 . . . . Garrison Access . | . . . . . . . Terminal Hacks 19 | . 8 1 . 7 3 . Record 3 | . . 1 . 1 1 . Prototype ID Bank 4 | . 2 . . 2 . . Open DSF 1 | . . . . . 1 . Branch Access Points 1 | . . . . . 1 . Emergency Access Points 1 | . . . . 1 . . Scanalyzer Index 1 | . 1 . . . . . Alert Level 2 | . 1 . . 1 . . Locate Traps 1 | . 1 . . . . . Dispatch Records 1 | . 1 . . . . . Transport Status 1 | . . . . 1 . . Investigation Status 1 | . 1 . . . . . Registered Components 2 | . 1 . . 1 . . Fabricator Hacks . | . . . . . . . Repair Station Hacks . | . . . . . . . Recycling Unit Hacks 4 | . . . . 4 . . Recycle Component 1 | . . . . 1 . . Process 1 | . . . . 1 . . Report Inventory 1 | . . . . 1 . . Retrieve Matter 1 | . . . . 1 . . Scanalyzer 2 | . . 2 . . . . Insert Component 1 | . . 1 . . . . Analyze 1 | . . 1 . . . . Garrison Access Hacks . | . . . . . . . Unauthorized Hacks . | . . . . . . . Terminals . | . . . . . . . Fabricators . | . . . . . . . Repair Stations . | . . . . . . . Recycling Units . | . . . . . . . Scanalyzers . | . . . . . . . Garrison Access . | . . . . . . . Data Cores Recovered 1 | . . 1 . . . . Used . | . . . . . . . Hacking Detections 11 | . 4 2 . 4 1 . Full Trace Events 4 | . 2 . . 2 . . Feedback Events . | . . . . . . . Feedback Blocked . | . . . . . . . Robot Schematics Acquired . | . . . . . . . Robots Built . | . . . . . . . Authchips . | . . . . . . . Time . | . . . . . . . Total Robot Build Rating . | . . . . . . . Part Schematics Acquired 1 | . . 1 . . . . Parts Built . | . . . . . . . Authchips . | . . . . . . . Time . | . . . . . . . Total Part Build Rating . | . . . . . . . Parts Repaired . | . . . . . . . Time . | . . . . . . . Parts Recycled 1 | . . . . 1 . . Recycled Matter 58 | . . . . 58 . . Retrieved Matter 58 | . . . . 58 . . Retrieved Components . | . . . . . . . Parts Scanalyzed 1 | . . 1 . . . . Part Schematics Acquired 1 | . . 1 . . . . Parts Damaged . | . . . . . . . Bothacking | -11 -10 -9 -9 -8 -7 -7 ------------ Run | Yrd Mat Mat Min Mat Fac DSF Used RIF Installer . | . . . . . . . Robots Hacked . | . . . . . . . Non-combat . | . . . . . . . Combat . | . . . . . . . Robot Hacks Applied . | . . . . . . . Relay Couplers Released . | . . . . . . . Fabnet Peak Effective % . | . . . . . . . Robots Rewired . | . . . . . . . Allies Hacked . | . . . . . . . Hacks Repelled . | . . . . . . . Allies | -11 -10 -9 -9 -8 -7 -7 -------- Run | Yrd Mat Mat Min Mat Fac DSF Total Allies . | . . . . . . . Largest Group . | . . . . . . . Highest-Rated Group . | . . . . . . . Highest-Rated Ally . | . . . . . . . Total Orders . | . . . . . . . Ally Attacks . | . . . . . . . Total Damage . | . . . . . . . Kills . | . . . . . . . Allies Corrupted . | . . . . . . . Allies Melted . | . . . . . . . Intel | -11 -10 -9 -9 -8 -7 -7 ------- Run | Yrd Mat Mat Min Mat Fac DSF Robot Analysis Total . | . . . . . . . Derelict Logs Recovered 1 | . . . 1 . . . Drone Launches . | . . . . . . . Drone Recoveries . | . . . . . . . Exploration | -11 -10 -9 -9 -8 -7 -7 ------------- Run | Yrd Mat Mat Min Mat Fac DSF Turns Passed 2491 | 86 642 433 351 717 88 174 Spaces Moved 1349 | 61 435 269 175 274 67 68 Core 15 | 15 . . . . . . Treads 230 | . . 151 79 . . . Legs 768 | 46 220 . 96 274 67 65 Wheels 3 | . . . . . . 3 Hover 333 | . 215 118 . . . . Flight . | . . . . . . . Fastest Speed 50 | 50 56 66 120 120 120 105 Average Speed 113 | 102 90 122 138 124 120 123 Slowest Speed 190 | 120 190 160 160 190 120 190 Overloaded Moves . | . . . . . . . Propulsion Burnouts . | . . . . . . . Robots Hopped . | . . . . . . . Cave-ins Triggered . | . . . . . . . Exploration Rate (%) 32 | 5 71 21 43 23 1 65 Regions Visited 6 Branch Regions 1 Pre-discovered Areas . | . . . . . . . Known Exits Taken 1 | . . . . . 1 . Unknown Exits Taken 5 | 1 1 1 1 1 . . Scrap Searched 1 | . . . 1 . . . Spaces Dug . | . . . . . . . Terrain Destroyed 26 | . . . . 4 . 22 Melee . | . . . . . . . Projectile . | . . . . . . . AOE 26 | . . . . 4 . 22 Terrain Rammed . | . . . . . . . Walls Destroyed . | . . . . . . . Machines Disabled . | . . . . . . . Actions | -11 -10 -9 -9 -8 -7 -7 --------- Run | Yrd Mat Mat Min Mat Fac DSF Total 2034 | 74 587 340 244 589 75 125 Wait 411 | 1 81 35 30 251 1 12 Move 1343 | 60 434 268 174 273 66 68 Hop . | . . . . . . . Pick Up 41 | 3 9 6 4 13 1 5 Fast Attach 26 | 4 3 5 6 5 . 3 Attach 26 | 2 1 3 3 3 6 8 Detach 2 | . 1 . . . 1 . Swap 18 | . 5 1 2 5 . 5 Drop 18 | . 5 4 4 . . 5 Fire 138 | 4 48 18 21 39 . 8 Melee 9 | . . . . . . 9 Ram . | . . . . . . . Kick . | . . . . . . . Crush . | . . . . . . . Escape Stasis 2 | . . . . . . 2 Rewire . | . . . . . . . Trap . | . . . . . . . Miscellaneous . | . . . . . . . Route ------- -11/Scrapyard -10/Materials (discovered 2 exits: *Mat x2) -9/Materials -9/Mines -8/Materials -7/Factory (discovered 3 exits: Low x2 / DSF) -7/DSF History --------- Turn | Location | Event 2 | -11/Scrapyard | Met Revision 17 65 | -11/Scrapyard | Discovered new exit (range 8) 87 | -11/Scrapyard | Entered Materials 324 | -10/Materials | Build established: Mutant 564 | -10/Materials | Discovered new exit (range 16) 701 | -10/Materials | Discovered new exit (range 7) 712 | -10/Materials | Build established: Scavenger-Mutant 729 | -10/Materials | Entered another Materials area 729 | -9/Materials | Evolved 2 slots: Propulsion x1, Utility x1 753 | -9/Materials | Discovered new exit (range 16) 890 | -9/Materials | Lost 3 parts (1n1u1w) 1162 | -9/Materials | Entered Mines 1190 | -9/Mines | Assembled infested the area 1195 | -9/Mines | Assisted by a Guerilla fighting off Assembled 1198 | -9/Mines | Learned Materials security intel 1363 | -9/Mines | Discovered new exit (range 9) 1364 | -9/Mines | Lost 6 parts (1p2u3w) 1415 | -9/Mines | Found a damaged Exp. Sensor Array with a note attached 1417 | -9/Mines | Found Prototype Device 1418 | -9/Mines | Identified Exp. Sensor Array 1513 | -9/Mines | Entered Materials 1513 | -8/Materials | Evolved 2 slots: Propulsion x1, Utility x1 2174 | -8/Materials | Discovered new exit (range 7) 2230 | -8/Materials | Entered Factory 2230 | -7/Factory | Evolved 2 slots: Utility x1, Weapon x1 2247 | -7/Factory | Identified exit to Lower Caves 2261 | -7/Factory | Lost 6 parts (1p3n1u1w) 2318 | -7/Factory | Identified exit to DSF 2318 | -7/Factory | Entered DSF 2370 | -7/DSF | Additional patrols routed to DSF 2479 | -7/DSF | Core integrity fell below 50% 2487 | -7/DSF | Core integrity fell below 20% 2492 | -7/DSF | Destroyed by X-62 Marksman with Gauss Rifle Last Messages --------------- X-67 Chaingunner destroyed. Penetrated by Slug. X-67 Chaingunner destroyed. Arm. Wheel destroyed. Acquired 81 matter. Acquired Chainsword. Only a single melee weapon may be active at a time, Chainsword automatically deactivated. (Secondary inactive melee weapons have a chance to conduct follow-up attacks, see the manual.) Arm. Wheel destroyed. Imp. Heat Sink destroyed. Core Analyzer destroyed. Penetrated by Slug. G-47 Trooper Aluminum Leg severed. Penetrated by Slug. Critical hit (Burn: +37). Chainsword destroyed. Dropped Faulty Imp. Cesium-ion Thruster. Dropped Datajack. Penetrated by Slug. Critical hit (Burn: +37). Map ----- +----------------------------------------------------+ | | | | | | | ????????????????????????????????????????? | | ????????????????????????????????????????? | | ????????????????????????????????????????? | | ????????????????????????????????????????? | | ""#????????????###??????????????????????? | | #"#????????##??# #??????????????????????? | | #"##???????#"###"###????????????????????? | | """######### !!!!!#????????????????????? | | """##[[# # !!!#????????????????????? | | % #????????????????????? | | % #????????????????????? | | ##//# #"" ###????????????????????? | | ^###//# #"" ###????????????????????? | | ##########!! % #????????????????????? | | #??????#!! #????????????????????? | | #??????#!! #????????????????????? | | ###??????#"" ###????????????????????? | | ]]#??????#[[ !!#????????????????????? | | ]]#??????#[[ !!#????????????????????? | | ]]#??????#[[ ###??????????????????? | | ###??????# # # #######????????????? | | ] #????????# # % ===#///#????????????? | | #????????# %% ===#/@/## !!#??????? | | ? % !=[*=g #??????? | | %% g=*xg #??????? | | % gg #??????? | | ##!!!#***##% a !!!#!!!## % #??????? | | #?!!!#***## #!!!#!!!#? #??????? | | ###??#####??##% ###########?? ###??????? | | ????????????!! ?????????????? ????????? | | ???????????#!! ???????????????#???????? | | ???????????#!! ???????????????????????? | | ???????????### ???????????????????????? | | ????????????? ????????????????????????? | | ????????????? ? ????????????????????????? | | ????????????????????????????????????????? | | ????????????????????????????????????????? | | ????????????????????????????????????????? | | ????????????????????????????????????????? | | ????????????????????????????????????????? | | ????????????????????????????????????????? | | ????????????????????????????????????????? | | ????????????????????????????????????????? | | ????????????????????????????????????????? | | ????????????????????????????????????????? | | ????????????????????????????????????????? | | ????????????????????????????????????????? | +----------------------------------------------------+ Best States ------------- Heat Dissipation 58 Coolant Potential 50 Energy Generation 18 Energy Capacity 310 Matter Stores 350 Matter Capacity 350 Sight Range 16 Robot Scan Range 20 Terrain Scan Density 10 Phase Shifting 5 Evasion (%) 63 Targeting Accuracy 5 Core Analysis 9 Recoil Reduction 3 Offensive Hacking 20 Item Schematics ----------------- Lgt. Nuclear Core | -9/Materials | Scanalyzed Robot Schematics ------------------ None Fabricated ------------ Nothing Alien Tech Used ----------------- None Achievements -------------- I Survived The Infestation Oops Serviceable Loadout Challenges ------------ None Game ------ Seed LatentDeliverySegregator Manual? 0 Play Time 01:05:15 Cumulative 4.1 hours Start 2024.12.30 @ 13:30:54 End 2024.12.30 @ 15:16:59 Sessions 4 Manual Loads 0 Difficulty Rogue Special Mode None Game No. 3 Rogue 3 Adventurer 0 Explorer 0 Win Type - Total 0 Types 0/0/0/0/0/0/0/0/0 Lore% 7 Gallery% 7 Achievement% 8 Wizard Run 0 Options --------- Layout 0 ASCII 0 Keyboard 0 Movement Numpad Keybinds 0 Fullscreen 1 Font 18/SmallcapsGlow Map View 112x50 Zoom Use 0% Tactical HUD 0 Map Filters NONE Filters NONE Steam 1 RUN: 78170dc5-8446-4bd1-aaea-53ab4d58175f